bitfinex/quotes_ETHUSD_20220227
["timestamp","ask_amount","ask_price","bid_price","bid_amount"]
[1646000292532,14.4687648,2617.2,2616.3,1.9121036]
[1646000293131,0.08067145,2617.6,2616.3,1.9121036]
[1646000293132,2.78078086,2617.7,2616.5,1.08074117]
[1646000293433,0.5,2617.8,2617.5,0.49999999]
[1646000293634,0.69235652,2617.8,2617.5,0.49999999]
[1646000293830,0.25,2618.2,2617.5,0.49999999]
[1646000294031,1.78002241,2618.5,2617.8,1.04412701]
[1646000294229,1.06594867,2618.5,2617.5,0.49999999]
[1646000294430,1.78002241,2618.5,2617.5,0.49999999]
[1646000294631,1.06594867,2618.5,2617.5,0.49999999]
[1646000295233,1.06594867,2618.5,2617.5,1.82891123]
[1646000295531,1.06594867,2618.5,2617.6,0.9555362]
[1646000295982,0.45307623,2618.5,2617.6,0.9555362]
[1646000296382,17.94407374,2618.7,2617.5,0.49999999]
[1646000296383,12.90234569,2618.4,2617.5,0.49999999]
[1646000296582,0.71407374,2618.3,2617.5,0.49999999]
[1646000297388,1.14993716,2618.0,2617.5,0.49999999]
[1646000297791,1.44993716,2618.0,2617.5,0.49999999]
[1646000297988,1.63394235,2618.0,2617.5,0.49999999]
[1646000299089,1.63394235,2618.0,2617.5,0.65268499]
[1646000300525,0.18400519,2618.0,2617.5,0.49999999]
[1646000300726,0.71407374,2618.5,2617.5,0.49999999]
[1646000300924,12.44407374,2618.5,2617.5,0.49999999]
[1646000301227,12.44407374,2618.4,2617.5,0.49999999]
[1646000301525,11.73,2618.4,2617.5,0.49999999]
[1646000301727,13.74407374,2618.4,2617.5,0.49999999]
[1646000301925,11.73,2618.3,2617.5,0.49999999]
[1646000302128,2.22009328,2618.4,2617.5,0.49999999]
[1646000302328,0.50601954,2618.4,2617.5,0.49999999]
[1646000303208,12.11121,2618.3,2617.5,0.65267999]
[1646000303409,12.97798374,2618.3,2617.5,0.49999999]
[1646000303608,11.73,2618.1,2617.5,0.49999999]
[1646000303809,13.03,2618.1,2617.4,0.43297052]
[1646000304010,13.03,2618.1,2617.3,1.91105]
[1646000304011,1.16370581,2617.5,2617.3,1.91105]
[1646000304209,13.03,2617.9,2617.3,1.91105]
[1646000304409,1.37350223,2617.5,2617.3,1.91105]
[1646000304810,1.0877461,2617.4,2617.3,1.91105]
[1646000305412,0.45441575,2617.5,2617.3,1.91105]
[1646000305609,0.1527,2617.8,2617.3,1.91105]
[1646000305808,12.91333763,2617.9,2617.3,1.91105]
[1646000305809,12.73,2617.9,2617.3,1.91105]
[1646000306008,1.20273697,2617.4,2617.3,1.91105]
[1646000306213,1.50273697,2617.4,2617.3,1.91105]
[1646000306414,12.73,2617.9,2617.3,1.91105]
[1646000306712,0.17551037,2618.0,2617.3,1.91105]
[1646000306924,2.28458263,2618.1,2617.3,1.91105]
[1646000307127,1.02104504,2617.4,2617.3,1.91105]
[1646000307731,11.8828,2617.9,2617.3,1.91105]
[1646000308228,13.1828,2617.9,2617.3,1.91105]
[1646000308428,12.33441427,2617.9,2617.3,1.91105]
[1646000308628,0.45161427,2617.9,2617.3,1.91105]
[1646000309030,0.15161427,2617.9,2617.3,1.91105]
[1646000309229,12.73,2618.0,2617.3,1.91105]
[1646000309429,11.73,2618.0,2617.3,1.91105]
[1646000309828,12.73,2618.0,2617.3,1.91105]
[1646000310230,1.59922592,2617.9,2617.3,1.91105]
[1646000310675,1.89922592,2617.9,2617.3,1.91105]
[1646000310878,1.59922592,2617.8,2617.3,1.91105]
[1646000311278,2.25,2618.3,2617.3,1.91105]
[1646000311478,0.3,2617.9,2617.3,1.91105]
[1646000311676,0.3,2617.9,2617.3,2.8665471]
[1646000311677,0.15930953,2617.9,2617.3,2.8665471]
[1646000311879,0.25,2618.3,2617.3,3.2493471]
[1646000312088,1.59902196,2618.2,2617.5,0.3828]
[1646000312284,0.20060665,2618.3,2617.6,3.8828]
[1646000312484,1.59894509,2618.2,2617.9,1.42386621]
[1646000312684,0.16855886,2618.3,2617.9,1.42386621]
[1646000312989,1.59897839,2618.2,2617.7,1.10812]
[1646000313188,0.21030267,2618.3,2617.7,0.95542]
[1646000313384,0.19138348,2618.7,2617.7,0.95542]
[1646000313585,1.59896445,2618.6,2617.7,0.95542]
[1646000313984,1.89896445,2618.6,2617.7,0.95542]
[1646000314185,1.59896445,2618.5,2617.7,0.95542]
[1646000314432,1.59896445,2618.5,2618.3,1.43773007]
[1646000314731,2.10182635,2618.5,2617.5,4.8828]
[1646000314930,1.59896445,2618.4,2617.5,1.3828]
[1646000315131,1.59896445,2618.4,2617.5,1.551]
[1646000315330,1.59896445,2618.4,2617.5,0.9338]
[1646000316131,1.59896445,2618.4,2617.9,1.1739702]
[1646000319682,1.59896445,2618.4,2617.7,2.86614]
[1646000320885,1.44402058,2618.1,2617.7,2.86614]
[1646000321085,1.74402058,2618.1,2617.7,2.86614]
[1646000321486,1.93838484,2618.1,2617.7,2.86614]
[1646000322733,0.3,2618.0,2617.7,2.86614]
[1646000323034,0.48770087,2618.0,2617.7,2.86614]
[1646000323432,0.50450849,2618.0,2617.7,2.86614]
[1646000323633,0.20450849,2618.0,2617.7,2.86614]
[1646000323834,1.26165113,2618.6,2617.9,1.34271297]
[1646000324033,1.59892831,2618.5,2617.9,1.34271297]
[1646000324433,1.59892831,2618.5,2617.7,2.86614]
[1646000325034,1.89892831,2618.5,2617.7,2.86614]
[1646000325233,1.59892831,2618.4,2617.7,2.86614]
[1646000325433,1.59892831,2618.4,2617.9,1.02425507]
[1646000326883,1.59892831,2618.4,2617.7,2.86614]
[1646000327286,1.89892831,2618.4,2617.7,2.86614]
[1646000327486,1.59892831,2618.3,2617.7,2.859726]
[1646000328586,2.79875389,2618.3,2617.7,4.21231547]
[1646000328787,0.48926668,2618.4,2617.7,4.21231547]
[1646000328987,1.59893253,2618.3,2617.7,2.859726]
[1646000329929,1.59893253,2618.3,2617.7,4.29449191]
[1646000331332,1.59893253,2618.3,2617.7,2.859726]
[1646000332232,1.44449553,2618.2,2617.7,2.859726]
[1646000332435,1.59893253,2618.1,2617.7,2.859726]
[1646000332835,5.09893253,2618.1,2617.7,2.859726]
[1646000333034,5.09893253,2618.1,2617.7,1.15397472]
[1646000333035,1.59893253,2618.0,2617.7,1.15397472]
[1646000333284,13.62893253,2618.0,2617.7,1.15397472]
[1646000333488,11.73,2617.8,2617.7,1.15397472]
[1646000333686,13.32893253,2617.8,2617.7,1.15397472]
[1646000333885,14.62893253,2617.8,2617.7,1.15397472]
[1646000334185,14.78412207,2617.8,2617.7,1.15397472]
[1646000334385,14.73412207,2617.8,2617.7,1.15397472]
[1646000335383,2.00412207,2617.8,2617.7,1.15397472]
[1646000335584,2.00412207,2617.8,2617.7,1.23393417]
[1646000336587,2.0,2618.2,2617.7,1.23393417]
[1646000336789,1.58015785,2618.1,2617.8,0.07995945]
[1646000337041,1.58015785,2618.1,2617.7,1.15397472]
[1646000337240,11.73,2618.0,2617.7,1.15397472]
[1646000337642,11.73,2617.8,2617.7,1.15397472]
[1646000337844,12.73,2617.8,2617.7,1.15397472]
[1646000338242,13.19530404,2617.8,2617.7,1.15397472]
[1646000338844,12.19530404,2617.8,2617.7,1.15397472]
[1646000339143,13.19530404,2617.8,2617.7,1.15397472]
[1646000340677,11.89530404,2617.8,2617.7,1.15397472]
[1646000341085,11.73,2617.8,2617.7,1.15397472]
[1646000342082,12.18324803,2617.8,2617.7,1.15397472]
[1646000342286,13.18324803,2617.8,2617.7,1.15397472]
[1646000343284,13.18324803,2617.8,2617.7,1.10397472]
[1646000343486,12.18324803,2617.8,2617.7,1.10397472]
[1646000344741,13.18324803,2617.8,2617.7,1.10397472]
[1646000345941,0.15324803,2617.8,2617.7,1.10397472]
[1646000346345,1.0,2618.2,2617.7,1.10397472]
[1646000346943,1.0,2618.2,2617.8,1.0130676]
[1646000347943,1.3,2618.2,2617.7,1.10397472]
[1646000348386,1.18033463,2618.2,2617.7,1.10397472]
[1646000348582,1.0,2618.2,2617.7,1.10397472]
[1646000348789,15.94407374,2618.1,2617.7,1.10397472]
[1646000348984,12.87817965,2617.9,2617.7,1.10397472]
[1646000349186,13.03087965,2617.9,2617.4,0.95538]
[1646000349385,14.036,2617.7,2616.8,0.71421369]
[1646000349685,14.036,2617.7,2616.3,5.27198374]
[1646000349686,11.73,2616.9,2615.9,0.98585011]
[1646000349882,11.73,2616.9,2615.9,0.98681011]
[1646000349883,11.73,2616.7,2615.9,0.98681011]
[1646000350086,11.73,2616.7,2616.6,0.95584]
[1646000350283,13.03,2616.7,2616.4,0.152774]
[1646000350493,11.73,2616.6,2616.2,0.00096]
[1646000350684,12.03,2616.6,2616.2,0.00096]
[1646000350886,13.03,2616.6,2616.1,3.82292]
[1646000351085,1.45275775,2616.6,2616.1,3.82292]
[1646000351288,11.73,2616.5,2616.2,0.95614]
[1646000351791,0.45275775,2616.6,2616.2,0.95614]
[1646000352232,1.47761373,2616.3,2616.2,0.95614]
[1646000352432,1.64773334,2616.3,2616.2,0.95614]
[1646000353033,0.47011961,2616.3,2616.2,0.95614]
[1646000353233,12.29940834,2616.7,2616.2,0.95614]
[1646000353433,0.56940834,2616.7,2616.2,0.95614]
[1646000353634,1.56940834,2616.7,2616.2,0.95614]
[1646000353831,0.56940834,2616.7,2616.2,0.95614]
[1646000354037,1.4432042,2616.4,2616.2,0.95614]
[1646000354233,0.56940834,2616.7,2616.2,0.95614]
[1646000354441,0.93127848,2617.2,2616.2,0.95614]
[1646000354634,1.96407374,2617.3,2616.2,1.1098]
[1646000354635,0.45689343,2617.3,2616.2,1.1098]
[1646000354835,0.25,2617.3,2616.2,1.1098]
[1646000355034,0.25,2617.3,2616.3,2.86734]
[1646000355234,0.25,2617.3,2617.0,1.3648428]
[1646000355437,0.71407374,2617.9,2616.5,0.3828]
[1646000355692,1.40843976,2618.0,2616.5,0.3828]
[1646000355882,1.40843976,2618.0,2616.6,0.1527]
[1646000356284,0.84706602,2618.0,2616.6,0.1527]
[1646000356488,0.69436602,2618.0,2617.3,1.16966089]
[1646000356887,1.59929694,2617.9,2617.3,1.16966089]
[1646000357490,0.69436602,2618.0,2617.3,1.16966089]
[1646000358089,1.89917097,2617.9,2617.3,1.16966089]
[1646000358291,1.59917097,2617.8,2617.3,1.16966089]
[1646000358490,0.5,2618.0,2617.3,1.16966089]
[1646000358491,0.68438682,2618.0,2617.3,1.16966089]
[1646000358690,1.59912984,2617.9,2617.3,1.16966089]
[1646000359532,1.59912984,2617.9,2617.4,0.3828]
[1646000359533,1.89912984,2617.9,2617.4,0.3828]
[1646000359739,0.20567863,2617.9,2617.4,0.3828]
[1646000359931,0.67504012,2618.0,2617.5,0.1527]
[1646000360333,0.17504012,2618.0,2617.4,0.5355]
[1646000360539,0.25,2618.1,2617.4,0.5355]
[1646000360540,0.46047589,2618.1,2617.4,0.5355]
[1646000360736,1.0,2618.2,2618.0,1.24214294]
[1646000360935,1.0,2618.2,2617.7,0.3828]
[1646000361138,1.59897979,2618.1,2617.7,0.3828]
[1646000361939,1.48953499,2618.2,2617.7,0.3828]
[1646000362343,1.48953499,2618.2,2617.7,2.29364]
[1646000362741,1.48953499,2618.2,2617.8,1.12982622]
[1646000363379,1.48953499,2618.2,2617.7,2.29364]
[1646000365889,0.00195537,2618.7,2617.8,1.78757594]
[1646000366090,0.00195537,2618.7,2618.0,0.3828]
[1646000366289,0.71407374,2619.3,2618.0,0.3828]
[1646000366290,0.71407374,2619.4,2618.0,0.3828]
[1646000366489,1.59841103,2619.4,2618.4,0.3828]
[1646000366690,0.71407374,2619.5,2618.4,0.3828]
[1646000366691,1.59841103,2619.3,2618.4,0.3828]
[1646000366940,1.59841103,2619.2,2618.4,0.3828]
[1646000367133,1.0805701,2619.7,2618.4,0.3828]
[1646000367134,1.59841103,2619.1,2618.4,1.3828]
[1646000367332,1.59841103,2619.0,2618.4,1.3828]
[1646000367539,0.71407374,2619.7,2618.4,1.3828]
[1646000367736,1.5981984,2619.6,2618.5,0.9338]
[1646000367933,0.15765425,2619.8,2618.5,0.9338]
[1646000367934,1.5981984,2619.5,2618.5,0.9338]
[1646000368136,1.5981984,2619.4,2618.5,0.9338]
[1646000368334,1.5981984,2619.3,2618.5,0.9338]
[1646000368535,0.75,2619.9,2618.8,1.3828]
[1646000368737,1.58983607,2619.8,2618.8,1.3828]
[1646000369135,0.3,2619.8,2618.8,1.3828]
[1646000369335,0.8,2619.9,2618.8,1.3828]
[1646000369536,0.00194949,2619.8,2618.8,1.3828]
[1646000369735,1.66062341,2619.8,2618.8,1.3828]
[1646000369934,1.87376767,2619.8,2618.8,1.3828]
[1646000370335,0.51509375,2619.8,2618.8,1.3828]
[1646000370536,0.5,2619.9,2618.8,1.3828]
[1646000370983,0.65141256,2619.9,2618.8,1.3828]
[1646000371384,0.65141256,2619.9,2619.0,0.3828]
[1646000371584,0.65141256,2619.9,2619.7,1.13051578]
[1646000371784,0.65141256,2619.9,2619.5,0.95466]
[1646000371785,0.57393972,2619.6,2619.5,0.95466]
[1646000371985,0.57393972,2619.6,2619.3,2.864]
[1646000372187,0.5,2619.9,2619.3,2.864]
[1646000372388,0.71973082,2619.9,2619.3,2.864]
[1646000373988,1.11233487,2620.2,2619.3,2.864]
[1646000374187,1.41233487,2620.2,2619.3,2.864]
[1646000374428,0.47351256,2620.2,2619.3,2.864]
[1646000374628,0.17545519,2620.2,2619.3,2.864]
[1646000374831,0.50194263,2620.2,2619.3,2.864]
[1646000375027,0.66337429,2620.2,2619.3,2.864]
[1646000375232,0.3,2620.1,2619.3,2.864]
[1646000375436,0.50088689,2620.1,2619.3,2.864]
[1646000375633,0.50194263,2620.2,2619.3,2.864]
[1646000376034,0.68855138,2620.2,2619.3,2.864]
[1646000377338,0.3,2620.1,2619.3,2.864]
[1646000377539,0.45247512,2620.1,2619.3,4.2468]
[1646000378385,0.45247512,2620.1,2619.8,0.9546]
[1646000378787,0.3,2620.1,2619.8,0.9546]
[1646000378988,0.20490532,2620.1,2619.8,0.9546]
[1646000379187,0.67545573,2620.2,2619.8,0.9546]
[1646000379389,0.67545573,2620.2,2620.0,1.30733376]
[1646000379587,0.67545573,2620.2,2619.8,0.9546]
[1646000380190,0.67545573,2620.2,2619.8,1.107172]
[1646000380387,0.49402981,2620.1,2619.8,1.107172]
[1646000380591,0.49402981,2620.1,2619.8,0.9546]
[1646000380789,0.49402981,2620.1,2619.9,1.23687874]
[1646000380988,0.49402981,2620.1,2619.8,0.9546]
[1646000384037,0.49402981,2620.1,2619.8,1.107174]
[1646000384238,0.49402981,2620.1,2619.8,0.9546]
[1646000385238,1.34540398,2619.9,2619.7,1.90919]
[1646000385440,0.18385479,2620.0,2619.7,1.90919]
[1646000385680,0.48921292,2620.1,2619.7,1.90919]
[1646000387885,0.48921292,2620.1,2619.7,2.061774]
[1646000390336,0.18921292,2620.1,2619.7,2.061774]
[1646000390533,0.70044376,2620.2,2619.7,2.061774]
[1646000391542,0.3,2620.1,2619.7,2.061774]
[1646000391743,0.51314531,2620.1,2619.7,0.35722607]
[1646000392041,0.51314531,2620.1,2619.7,0.152584]
[1646000392339,1.17409025,2620.0,2619.7,0.152584]
[1646000395385,0.25755597,2620.0,2619.7,0.152584]
[1646000396489,0.15755597,2620.0,2619.7,0.152584]
[1646000397641,0.5,2619.9,2619.7,0.152584]
[1646000397843,0.68332394,2619.9,2619.7,0.152584]
[1646000398043,0.3,2619.8,2619.7,0.152584]
[1646000398242,0.45223117,2619.8,2619.7,0.152584]
[1646000398943,1.95475982,2619.8,2619.7,0.152584]
[1646000400244,1.65475982,2619.8,2619.7,0.152584]
[1646000400444,1.50252865,2619.8,2619.7,0.152584]
[1646000400891,1.50252865,2619.8,2618.7,2.2926]
[1646000400892,5.00252865,2619.8,2618.7,2.2926]
[1646000401093,1.50252865,2619.7,2618.6,6.391]
[1646000401291,0.00194263,2619.6,2618.5,2.9245]
[1646000401491,13.23447128,2619.6,2618.5,2.9245]
[1646000401695,1.19879847,2619.1,2618.6,0.07990644]
[1646000402094,1.49879847,2619.1,2618.3,1.337831]
[1646000402292,1.70273148,2619.1,2618.4,0.07991071]
[1646000402492,1.70078885,2619.1,2618.4,0.07991071]
[1646000402893,1.34976387,2618.7,2618.4,0.07991071]
[1646000403291,1.64976387,2618.7,2618.4,0.07991071]
[1646000403491,0.51370211,2618.7,2618.4,0.07991071]
[1646000403693,0.21370211,2618.7,2618.4,0.07991071]
[1646000403895,0.46458347,2618.6,2618.4,0.07991071]
[1646000404545,0.51565891,2618.6,2618.4,0.07991071]
[1646000404744,0.3,2618.5,2618.4,0.07991071]
[1646000404958,0.45274496,2618.5,2618.4,0.07991071]
[1646000405144,0.15274496,2618.5,2618.4,0.07991071]
[1646000405346,0.45274496,2618.5,2618.4,0.07991071]
[1646000406148,0.15274496,2618.5,2618.4,0.07991071]
[1646000406350,0.45274496,2618.5,2618.4,0.07991071]
[1646000406550,0.15274496,2618.5,2618.4,0.07991071]
[1646000406753,0.15464263,2619.3,2618.4,0.07991071]
[1646000406958,1.46920797,2619.2,2618.4,0.07991071]
[1646000407154,0.18818403,2619.3,2618.4,0.07991071]
[1646000407355,1.12393292,2619.2,2618.5,1.05365843]
[1646000407553,1.12393292,2619.2,2618.4,1.07991071]
[1646000407554,1.12393292,2619.2,2618.4,1.0]
[1646000408385,1.63295146,2619.2,2618.4,1.0]
[1646000408585,1.63295146,2619.2,2618.6,1.0]
[1646000408984,0.50901854,2619.2,2618.6,1.0]
[1646000409186,0.00194263,2619.3,2618.7,0.3828]
[1646000409388,0.3,2619.1,2618.7,0.3828]
[1646000409595,0.3,2619.1,2618.7,0.9338]
[1646000409596,0.46966075,2619.1,2618.7,0.9338]
[1646000409788,0.0001,2619.0,2618.7,0.9338]
[1646000409987,0.00194263,2619.3,2618.7,0.9338]
[1646000410187,1.0,2619.4,2618.7,0.9338]
[1646000411392,0.95,2619.4,2618.7,0.9338]
[1646000411691,1.42027269,2619.4,2619.3,1.21971165]
[1646000413039,1.42027269,2619.4,2618.8,0.3828]
[1646000413239,1.42027269,2619.4,2618.8,0.9338]
[1646000414040,1.42027269,2619.4,2618.9,1.05433827]
[1646000414644,1.42027269,2619.4,2618.8,0.551]
[1646000415682,1.12027269,2619.4,2618.8,0.9338]
[1646000415882,1.12027269,2619.4,2618.8,1.9338]
[1646000416085,0.95,2619.4,2618.8,1.9338]
[1646000416285,0.95,2619.4,2618.8,1.551]
[1646000416886,0.95,2619.4,2619.0,1.04842666]
[1646000417090,1.25,2619.4,2619.0,1.04842666]
[1646000417293,1.46793404,2619.4,2619.0,1.04842666]
[1646000417890,1.46793404,2619.4,2618.8,2.551]
[1646000418088,1.46793404,2619.4,2618.8,1.551]
[1646000418289,1.46793404,2619.4,2618.5,10.3985]
[1646000418489,0.00194263,2619.3,2618.5,10.9495]
[1646000419432,1.36936705,2619.2,2618.6,1.18855176]
[1646000419631,0.00194263,2619.3,2618.6,1.18855176]
[1646000419839,0.00194263,2619.3,2618.5,10.9495]
[1646000420834,1.12997921,2619.1,2618.5,12.24830003]
[1646000421033,1.12997921,2619.1,2618.5,1.84980003]
[1646000421234,1.42997921,2619.1,2618.5,0.551]
[1646000421435,0.45315241,2619.1,2618.5,0.551]
[1646000421632,0.15315241,2619.1,2618.5,0.551]
[1646000421834,0.51971483,2619.0,2618.5,0.551]
[1646000422037,0.46774335,2619.0,2618.5,0.551]
[1646000422639,0.46774335,2619.0,2618.5,1.72159015]
[1646000423038,0.46774335,2619.0,2618.5,0.551]
[1646000424787,1.43302257,2618.9,2618.5,0.551]
[1646000425791,0.46774335,2619.0,2618.5,0.551]
[1646000426586,0.46774335,2619.0,2618.5,1.2548335]
[1646000426587,0.21971483,2619.0,2618.5,1.2548335]
[1646000426788,1.42373031,2619.3,2618.6,1.39911181]
[1646000427033,1.52056506,2619.2,2618.7,0.07990845]
[1646000427434,1.52056506,2619.2,2618.8,0.07990845]
[1646000427638,1.52056506,2619.2,2618.9,0.07990845]
[1646000427834,1.82056506,2619.2,2619.0,0.07990845]
[1646000428035,1.52056506,2619.1,2618.5,1.2548335]
[1646000428236,1.52056506,2619.1,2618.6,0.07990975]
[1646000430438,1.52056506,2619.1,2618.6,1.33795549]
[1646000430685,0.18694941,2619.2,2618.7,0.07990975]
[1646000430885,0.95194263,2619.4,2618.8,0.07990975]
[1646000431084,0.95194263,2619.4,2618.9,0.07990975]
[1646000431085,1.52127399,2619.3,2618.9,0.07990975]
[1646000431287,1.52127399,2619.3,2619.0,0.07990975]
[1646000431486,1.52127399,2619.3,2619.1,0.07990975]
[1646000431686,1.52127399,2619.3,2618.6,0.7038335]
[1646000431687,1.52127399,2619.3,2619.2,0.07990975]
[1646000432090,1.52127399,2619.3,2618.6,0.07990975]
[1646000432290,1.52127399,2619.3,2618.7,0.07990975]
[1646000432291,1.14411875,2619.2,2618.7,0.07990975]
[1646000432490,1.52127399,2619.1,2618.8,0.07990975]
[1646000432692,1.52127399,2619.1,2618.9,0.07990975]
[1646000432897,1.52127399,2619.1,2619.0,0.07990975]
[1646000433694,1.52127399,2619.1,2618.7,0.07990975]
[1646000433895,1.52127399,2619.1,2618.8,0.07990975]
[1646000434094,1.52127399,2619.1,2618.9,0.07990975]
[1646000434294,1.52127399,2619.1,2619.0,0.07990975]
[1646000434535,1.52127399,2619.1,2618.6,0.07990975]
[1646000434736,1.52127399,2619.1,2618.7,0.07990975]
[1646000434937,1.52127399,2619.1,2618.5,1.29637991]
[1646000435140,1.52127399,2619.1,2618.6,0.07990975]
[1646000440395,1.82127399,2619.1,2618.6,0.07990975]
[1646000440596,1.52127399,2619.0,2618.6,0.07990975]
[1646000440798,1.52127399,2619.0,2618.7,0.07990975]
[1646000440994,1.52127399,2619.0,2618.8,0.07990975]
[1646000441194,1.52127399,2619.0,2618.9,0.07990975]
[1646000441404,1.52127399,2619.0,2618.5,0.78374325]
[1646000441796,1.26521625,2618.9,2618.5,0.78374325]
[1646000442048,1.52127399,2618.8,2618.6,0.07990975]
[1646000442351,0.9496,2618.4,2617.7,1.0]
[1646000442548,0.9496,2618.4,2618.1,0.152676]
[1646000442549,0.15581005,2618.4,2618.1,0.152676]
[1646000442747,0.9496,2618.2,2617.2,0.93324412]
[1646000442946,0.9496,2618.2,2617.1,0.93324412]
[1646000442947,0.1527,2618.1,2617.1,0.93324412]
[1646000443353,0.1527,2618.1,2617.0,0.93324412]
[1646000443548,1.1023,2618.1,2617.0,0.93420412]
[1646000443747,0.1527,2618.1,2617.0,0.00096]
[1646000443949,1.02090354,2617.3,2616.7,0.93420412]
[1646000444148,1.02090354,2617.3,2617.0,0.00096]
[1646000444349,1.50867833,2617.3,2616.6,0.93324412]
[1646000444748,1.50867833,2617.3,2616.5,1.93420412]
[1646000445147,1.50867833,2617.3,2616.5,1.00096]
[1646000445348,1.05619511,2616.9,2616.5,1.00096]
[1646000445692,1.57138443,2616.9,2616.5,1.0]
[1646000446090,1.57138443,2616.9,2616.3,0.00096]
[1646000446288,1.57138443,2616.9,2616.1,2.44687867]
[1646000446488,1.57138443,2616.9,2616.4,0.152743]
[1646000446688,1.57138443,2616.9,2616.2,1.00096]
[1646000446689,0.51518932,2616.9,2616.2,1.00096]
[1646000447090,0.21518932,2616.9,2616.2,1.00096]
[1646000447292,1.1023,2617.3,2616.2,1.00096]
[1646000447490,0.3,2617.0,2616.2,0.95096]
[1646000447692,1.32689641,2616.8,2616.2,0.95096]
[1646000447893,0.3,2616.8,2616.2,0.95096]
[1646000448094,0.49116079,2616.8,2616.2,0.95096]
[1646000448292,0.19116079,2616.8,2616.2,0.95096]
[1646000448498,0.9496,2617.3,2616.2,0.95096]
[1646000448499,0.3,2616.7,2616.2,0.95096]
[1646000448695,0.16953156,2616.7,2616.2,0.95096]
[1646000448894,1.46786047,2617.3,2616.7,1.26438337]
[1646000449094,1.46786047,2617.3,2616.2,1.33376]
[1646000449295,1.46786047,2617.3,2616.2,1.3332]
[1646000449545,1.46786047,2617.3,2616.2,0.9504]
[1646000450043,1.12703754,2617.0,2616.2,0.9504]
[1646000450245,0.3,2617.0,2616.1,2.2238]
[1646000450445,0.50793209,2617.0,2616.7,0.9504]
[1646000450644,0.50793209,2617.0,2616.5,0.9504]
[1646000450843,0.9496,2617.3,2616.5,0.9504]
[1646000450844,0.3,2616.9,2616.5,0.9504]
[1646000451051,0.16576687,2616.9,2616.5,0.95136]
[1646000451249,1.59199845,2616.7,2616.5,0.9504]
[1646000451453,1.7923607,2616.7,2616.5,0.95136]
[1646000451649,1.7923607,2616.7,2616.5,0.9504]
[1646000452653,1.7923607,2616.7,2616.0,0.00096]
[1646000453291,1.7923607,2616.7,2615.9,0.05260599]
[1646000453494,1.01249054,2616.2,2615.9,0.05260599]
[1646000453890,0.1529,2616.7,2615.9,0.05260599]
[1646000454091,0.9496,2616.8,2615.9,0.05260599]
[1646000454492,12.6796,2616.8,2615.9,0.05260599]
[1646000455092,12.9796,2616.8,2615.9,0.05260599]
[1646000455292,13.13842142,2616.8,2615.9,0.05260599]
[1646000455493,0.1621585,2616.3,2615.9,0.05260599]
[1646000455694,0.9496,2616.7,2615.9,0.05260599]
[1646000456096,1.1023,2616.7,2615.9,0.05260599]
[1646000456596,1.21667443,2616.2,2615.9,0.05260599]
[1646000456796,0.3,2616.2,2615.9,0.05260599]
[1646000457046,0.46181985,2616.2,2615.9,0.05260599]
[1646000457244,0.3,2616.1,2615.9,0.05260599]
[1646000457447,0.46496618,2616.1,2615.9,0.05260599]
[1646000457644,0.9496,2616.7,2615.9,0.05260599]
[1646000457845,1.03381192,2616.3,2615.9,0.05260599]
[1646000458045,1.2496,2616.7,2615.9,0.05260599]
[1646000458246,1.82602471,2616.7,2615.9,0.05260599]
[1646000458446,2.00338626,2616.7,2615.9,0.05260599]
[1646000459051,1.42696155,2616.7,2615.9,0.05260599]
[1646000459249,0.3,2616.5,2615.9,0.05260599]
[1646000459449,0.45454345,2616.5,2615.9,0.05260599]
[1646000460149,0.15454345,2616.5,2616.0,0.9504]
[1646000460347,1.32643498,2616.5,2616.0,0.9504]
[1646000460789,0.9496,2616.7,2616.0,0.9504]
[1646000460989,0.9496,2616.7,2616.3,0.9504]
[1646000461398,1.2496,2616.7,2616.3,0.9504]
[1646000461590,1.46258663,2616.7,2616.4,0.9504]
[1646000461789,1.32678326,2616.6,2616.5,0.9504]
[1646000461996,1.46258663,2616.7,2616.5,0.9504]
[1646000462398,0.51298663,2616.7,2616.5,0.9504]
[1646000462597,0.25,2617.0,2616.5,0.9504]
[1646000462795,0.9496,2617.1,2616.5,0.9504]
[1646000462996,0.9496,2617.1,2616.5,1.19938963]
[1646000463495,0.9496,2617.1,2616.1,0.00096]
[1646000463905,1.44095411,2617.1,2616.1,0.00096]
[1646000464296,1.44095411,2617.1,2616.4,1.3174641]
[1646000464540,1.44095411,2617.1,2616.4,1.3184241]
[1646000464740,1.44095411,2617.1,2616.4,0.00096]
[1646000465040,0.9496,2616.7,2616.1,0.00096]
[1646000465341,1.2496,2616.7,2615.9,0.05356599]
[1646000465541,1.43426588,2616.7,2615.9,0.05260599]
[1646000465845,1.43426588,2616.7,2616.0,1.36327929]
[1646000466642,1.43426588,2616.7,2615.9,0.05260599]
[1646000467247,1.43426588,2616.7,2616.0,0.3828]
[1646000467649,1.43426588,2616.7,2616.6,1.06039551]
[1646000467853,1.43426588,2616.7,2616.1,0.00096]
[1646000468051,1.43426588,2616.7,2616.0,3.8828]
[1646000468052,1.43426588,2616.7,2616.0,0.3828]
[1646000468292,1.43426588,2616.7,2616.0,1.3828]
[1646000468493,1.43426588,2616.7,2616.0,0.3828]
[1646000468891,1.43426588,2616.7,2616.4,1.06780567]
[1646000469098,1.43426588,2616.7,2616.5,0.1528]
[1646000469693,1.43426588,2616.7,2616.4,1.06780567]
[1646000469894,1.13426588,2616.7,2616.4,1.06780567]
[1646000470094,0.9496,2616.7,2616.4,1.06780567]
[1646000470294,0.9496,2616.7,2616.4,1.22050567]
[1646000470494,0.9496,2616.7,2616.4,1.06780567]
[1646000471299,1.2496,2616.7,2616.4,1.06780567]
[1646000471498,1.4033314,2616.7,2616.4,1.06780567]
[1646000475346,1.4033314,2616.7,2616.3,0.1527]
[1646000476390,1.40221958,2616.7,2616.4,1.02269527]
[1646000476589,1.40221958,2616.7,2616.3,0.1527]
[1646000477798,1.40221958,2616.7,2616.3,1.41894954]
[1646000478495,1.40221958,2616.7,2616.3,0.1527]
[1646000479096,1.40221958,2616.7,2616.1,0.00096]
[1646000479301,1.40221958,2616.7,2616.0,0.7037]
[1646000479748,1.06719427,2616.6,2616.0,0.7037]
[1646000479949,1.06719427,2616.6,2616.0,1.6594776]
[1646000480249,1.36719427,2616.6,2616.0,0.7037]
[1646000480448,1.56266004,2616.6,2616.0,0.7037]
[1646000480650,1.56266004,2616.6,2616.0,0.551]